bitfinex-derivatives/quotes_ETHF0:USTF0_20260226
["timestamp","ask_amount","ask_price","bid_price","bid_amount"]
[1772143916263,1.16360807,2033.0,2032.5,0.90712736]
[1772143917464,0.25,2033.0,2032.5,0.90712736]
[1772143917664,0.25,2033.0,2032.6,0.90712736]
[1772143917864,1.16847295,2033.1,2032.6,0.90712736]
[1772143918465,0.91360807,2033.0,2032.6,0.90712736]
[1772143922069,0.91360807,2033.0,2032.4,0.90712736]
[1772143923463,0.91360807,2033.0,2032.6,0.90712736]
[1772143933072,0.91360807,2033.0,2032.5,1.11193475]
[1772143933273,0.91360807,2033.0,2032.6,0.86594475]
[1772143937774,0.91360807,2033.0,2032.5,1.11193475]
[1772143945475,0.91360807,2033.0,2032.5,0.74367602]
[1772143945682,0.91360807,2033.0,2032.2,0.19553356]
[1772143946376,0.91360807,2033.0,2032.4,0.19716568]
[1772143949385,0.88887874,2033.0,2032.4,0.19716568]
[1772143954891,0.88887874,2032.9,2032.4,0.19716568]
[1772143959080,0.89291606,2032.8,2032.4,0.19716568]
[1772143959285,0.66259916,2032.8,2032.4,0.19716568]
[1772143961492,0.88641837,2032.9,2032.4,0.19716568]
[1772143964495,1.01865668,2033.0,2032.6,0.92438496]
[1772143964693,0.93450382,2033.3,2032.6,0.92438496]
[1772143965193,0.93450382,2033.3,2032.8,0.92438496]
[1772143965393,0.93443071,2033.5,2032.9,0.92438496]
[1772143965693,0.93937376,2033.5,2032.9,0.92438496]
[1772143966187,0.92135318,2033.7,2033.1,0.92438496]
[1772143966393,0.92135318,2033.9,2033.2,0.92438496]
[1772143967286,0.92504671,2033.9,2033.2,0.92921989]
[1772143971901,0.92504671,2033.9,2033.2,0.00483493]
[1772143972101,0.92504671,2033.9,2033.2,0.92921989]
[1772143979208,0.92504671,2033.9,2033.3,0.92438496]
[1772143980104,0.92504671,2033.9,2033.4,2.14280035]
[1772143980405,0.04111697,2034.2,2033.8,1.21841539]
[1772143980612,1.21841539,2034.8,2033.8,2.2178554]
[1772143980806,1.21841539,2034.8,2034.0,2.23838138]
[1772143981006,1.21841539,2034.8,2034.0,1.01996599]
[1772143981311,1.22317225,2034.8,2034.0,1.01996599]
[1772143981808,0.06605341,2034.5,2033.7,1.03550888]
[1772143982001,0.03496765,2034.4,2033.7,1.03550888]
[1772143982605,0.03672923,2034.2,2033.5,1.03550888]
[1772143984511,0.013567,2033.9,2033.3,1.04651984]
[1772143986913,0.0034416,2033.7,2033.2,1.05464554]
[1772143987513,0.0034416,2033.7,2033.2,0.00483493]
[1772143987714,0.0034416,2033.7,2033.2,1.05464554]
[1772143991719,6.442,2034.5,2033.2,1.05464554]
[1772143992014,1.21841539,2034.1,2033.3,1.10899401]
[1772143993018,1.21841539,2033.9,2033.3,1.10899401]
[1772143993713,1.21841539,2033.7,2033.2,0.00483493]
[1772143993919,1.21841539,2033.7,2033.0,7.55251392]
[1772143994120,1.21841539,2033.7,2033.1,1.10951392]
[1772143995020,1.21841539,2033.7,2033.1,1.11425453]
[1772143999218,3.135,2033.8,2033.2,1.12011378]
[1772144000024,3.135,2033.8,2033.2,1.36602378]
[1772144001622,3.135,2033.8,2033.2,1.12011378]
[1772144002622,3.135,2033.8,2033.4,1.10997579]
[1772144004420,2.96734104,2033.8,2033.4,1.10997579]
[1772144004723,2.79934104,2034.2,2033.4,1.10997579]
[1772144004924,2.79934104,2034.2,2033.8,1.11256502]
[1772144010626,2.79934104,2034.4,2033.8,1.11256502]
[1772144010822,1.21841539,2034.3,2033.6,1.12586555]
[1772144011125,1.21841539,2034.6,2033.6,1.12586555]
[1772144011316,1.21841539,2034.4,2033.6,1.12586555]
[1772144016424,4.01775643,2034.4,2033.6,1.12586555]
[1772144017828,1.21841539,2034.2,2033.5,1.37576008]
[1772144018626,1.21841539,2034.2,2033.5,1.12989008]
[1772144019126,4.01775643,2034.4,2033.5,1.12989008]
[1772144025230,2.79934104,2034.4,2033.7,1.14142141]
[1772144025819,4.01775643,2034.4,2033.7,1.14142141]
[1772144026024,1.21841539,2034.2,2033.5,1.13919214]
[1772144026327,4.01775643,2034.4,2033.5,1.13919214]
[1772144027526,1.21841539,2033.9,2033.2,1.13932379]
[1772144028730,1.21841539,2034.6,2033.2,1.13932379]
[1772144028925,1.21841539,2033.6,2033.1,0.00474061]
[1772144029122,0.02130211,2033.5,2032.6,1.21841539]
[1772144029326,0.02130211,2033.5,2032.9,1.0043172]
[1772144029826,0.34202813,2033.3,2032.6,1.0043172]
[1772144030229,0.34820744,2033.3,2032.6,1.01068967]
[1772144032933,0.00617931,2033.3,2032.9,1.0043172]
[1772144039036,0.28972326,2033.7,2032.9,1.0043172]
[1772144040134,0.29345372,2033.7,2032.9,1.0043172]
[1772144041038,0.29334321,2033.6,2032.9,1.0043172]
[1772144043545,0.29334321,2033.6,2032.7,1.0043172]
[1772144043741,0.29598962,2033.3,2032.6,0.00637247]
[1772144044341,0.29605189,2033.0,2032.5,1.0043172]
[1772144044942,0.29605189,2033.0,2032.3,1.0043172]
[1772144045343,0.29605189,2033.0,2032.3,1.0099409]
[1772144055750,2.79934104,2033.3,2032.3,1.0099409]
[1772144055951,0.35487079,2033.2,2032.3,1.0099409]
[1772144059554,0.35904897,2033.5,2032.5,1.02288926]
[1772144059743,0.35904897,2033.1,2032.4,1.02288926]
[1772144059947,1.00591343,2032.8,2032.3,1.02851296]
[1772144062252,1.00591343,2032.5,2032.0,1.02288926]
[1772144063254,1.00591343,2032.5,2032.0,1.02716322]
[1772144066657,1.00591343,2032.7,2032.0,1.02716322]
[1772144072063,1.00591343,2032.6,2032.0,1.02716322]
[1772144089075,3.85303812,2032.7,2032.0,1.02716322]
[1772144090576,4.10303812,2032.7,2032.0,1.02716322]
[1772144090775,1.05369708,2032.6,2032.0,1.02716322]
[1772144100290,0.25,2032.5,2032.0,1.02716322]
[1772144100493,1.05369708,2032.4,2032.0,1.02716322]
[1772144101092,1.30369708,2032.5,2032.0,1.02716322]
[1772144106998,0.25,2032.5,2032.1,1.05243816]
[1772144107498,0.25,2032.5,2032.0,1.22472535]
[1772144107499,0.2443763,2032.7,2032.3,1.05243816]
[1772144120006,1.36881838,2032.7,2032.3,1.05243816]
[1772144120205,0.2443763,2032.7,2032.3,1.05243816]
[1772144125004,0.25,2033.1,2032.5,1.1244418]
[1772144125209,0.25,2033.1,2032.7,1.1244418]
[1772144125408,1.37444208,2033.1,2032.7,1.1244418]
[1772144125609,1.12444208,2033.0,2032.7,1.1244418]
[1772144129312,1.12444208,2032.9,2032.1,1.1244418]
[1772144130607,0.25,2033.1,2032.1,1.1244418]
[1772144130608,1.12444208,2032.7,2032.1,1.1244418]
[1772144154931,1.12252041,2032.3,2031.7,1.13740711]
[1772144155933,1.12252041,2032.1,2031.7,1.13740711]
[1772144156127,1.1265343,2032.1,2031.7,1.14205097]
[1772144160832,1.1265343,2032.1,2031.5,1.13740711]
[1772144161835,1.1265343,2032.1,2031.5,1.14210772]
[1772144163833,1.1265343,2032.1,2031.5,0.00470061]
[1772144165736,1.12252041,2031.9,2031.0,1.13740711]
[1772144166040,1.12252041,2031.9,2030.9,1.13740711]
[1772144166635,1.12252041,2031.9,2030.9,1.1414019]
[1772144168641,1.12252041,2031.7,2030.9,1.1414019]
[1772144170439,1.22082864,2031.5,2030.6,1.09351559]
[1772144170741,1.05481574,2031.1,2030.3,1.09351559]
[1772144171442,1.05481574,2031.1,2030.3,1.09887369]
[1772144171843,1.05481574,2031.1,2030.3,0.0053581]
[1772144174551,1.05481574,2030.8,2030.3,0.0053581]
[1772144175248,1.05481574,2030.5,2029.6,1.09351559]
[1772144176048,1.05992604,2030.5,2029.6,1.09908082]
[1772144183065,1.05481574,2030.7,2029.8,1.09351559]
[1772144184070,1.05852935,2030.7,2029.8,1.09351559]
[1772144186863,1.05852935,2030.7,2029.9,0.24631]
[1772144187067,0.00371361,2030.7,2030.1,1.09351559]
[1772144188772,1.05852935,2030.7,2030.1,1.09351559]
[1772144189971,0.00371361,2030.7,2030.1,1.09351559]
[1772144190173,1.05481574,2030.9,2030.1,1.09351559]
[1772144190672,40.8,2031.3,2030.1,1.09351559]
[1772144190874,1.05481574,2031.2,2030.3,1.09351559]
[1772144191172,1.05861592,2031.2,2030.3,1.09351559]
[1772144201172,1.05861592,2031.2,2030.5,1.05683587]
[1772144201376,1.0494503,2031.2,2030.6,1.05683587]
[1772144224701,0.00380018,2031.2,2030.8,1.05683587]
[1772144224903,1.06367795,2031.2,2030.8,1.05683587]
[1772144229706,1.07154894,2031.4,2030.8,1.05683587]
[1772144230203,1.07154894,2031.6,2030.8,1.05683587]
[1772144230703,1.07653581,2031.6,2030.8,1.05683587]
[1772144233106,1.07154894,2031.4,2030.8,1.05683587]
[1772144236211,1.07154894,2030.8,2030.4,1.12840884]
[1772144242714,1.07154894,2031.0,2030.4,1.12840884]
[1772144243511,1.07154894,2030.8,2030.4,1.12840884]
[1772144243716,1.07154894,2030.8,2030.3,1.12840884]
[1772144244818,1.07154894,2031.0,2030.3,1.12840884]
[1772144245013,1.07154894,2031.0,2030.4,1.12840884]
[1772144249318,1.07154894,2031.3,2030.5,1.22168239]
[1772144249523,1.07154894,2031.3,2030.8,1.12840884]
[1772144251822,1.07154894,2031.3,2030.6,1.12840884]
[1772144258326,1.07137072,2031.2,2030.4,1.14320528]
[1772144258526,1.07137072,2031.2,2030.6,1.14320528]
[1772144264437,1.07137072,2031.2,2030.8,1.13137067]
[1772144265238,1.07137072,2031.2,2030.7,1.37758067]
[1772144265439,1.07137072,2031.2,2030.7,1.13137067]
[1772144265738,1.07246546,2031.1,2030.4,1.13137067]
[1772144271746,1.07246546,2031.1,2030.6,1.13137067]
[1772144278955,1.07246546,2031.3,2030.6,1.13137067]
[1772144281051,1.07246546,2031.5,2031.0,1.13137067]
[1772144281854,1.07246546,2031.5,2030.9,1.22168239]
[1772144281855,1.07246546,2031.5,2030.7,2.59926306]
[1772144282045,1.07246546,2031.4,2030.7,1.37758067]
[1772144287758,1.07246546,2031.4,2030.7,1.37758067]
[1772144298059,1.07665838,2031.6,2030.8,1.03647736]
[1772144298559,1.07665838,2031.6,2031.0,1.03647736]
[1772144301856,0.00498687,2031.6,2031.1,1.03647736]
[1772144302060,0.00498687,2031.6,2031.1,1.04167102]
[1772144302760,1.07665838,2031.6,2031.1,1.04167102]
[1772144304961,1.07167151,2031.9,2031.3,1.03647736]
[1772144305159,1.07167151,2031.9,2031.2,0.24615]
[1772144305462,1.07167151,2031.9,2031.2,1.28262736]
[1772144305864,1.07717493,2031.9,2031.2,1.28262736]
[1772144306362,1.07717493,2031.9,2031.1,0.00519366]
[1772144306661,1.07717493,2031.9,2030.8,1.28267736]
[1772144307662,1.07717493,2031.9,2030.8,1.28854408]
[1772144309665,1.07717493,2031.9,2030.8,2.28854408]
[1772144309864,1.07717493,2031.9,2030.9,1.03647736]
[1772144312164,2.97250342,2031.9,2030.9,1.03647736]
[1772144312368,1.07167151,2031.8,2030.9,1.03647736]
[1772144324475,1.22160007,2031.6,2030.8,1.00586672]
[1772144324679,1.12147081,2031.5,2030.8,1.00586672]
[1772144328085,1.12147081,2031.5,2030.8,2.05806651]
[1772144328686,1.12147081,2031.5,2030.9,1.05219979]
[1772144340494,1.12147081,2031.5,2030.8,1.00586672]
[1772144342393,1.12147081,2031.3,2030.5,2.05219979]
[1772144342600,1.12147081,2031.2,2030.5,2.05219979]
[1772144343302,1.12147081,2031.2,2030.5,2.05797712]
[1772144345100,1.12147081,2031.2,2030.6,1.05219979]
[1772144345904,1.12147081,2031.2,2030.5,1.00577733]
[1772144346705,1.12147081,2031.2,2030.5,2.05797712]
[1772144347203,2.34356903,2031.2,2030.5,2.05797712]
[1772144347405,1.12147081,2031.1,2030.5,2.05797712]
[1772144348306,1.12147081,2031.1,2030.6,1.05219979]
[1772144355513,1.12147081,2031.1,2030.7,1.05705496]
[1772144355709,1.01555347,2031.2,2030.7,1.05705496]
[1772144369919,1.01555347,2031.2,2030.5,1.00577733]
[1772144370223,1.01555347,2031.2,2030.6,1.05705496]
[1772144370224,1.01555347,2031.1,2030.6,1.05705496]
[1772144373625,0.24609,2031.7,2030.7,1.05705496]
[1772144373626,1.01555347,2031.4,2030.7,1.05705496]
[1772144379329,0.99792375,2031.2,2030.7,1.05705496]
[1772144381630,0.99792375,2031.2,2030.5,4.09257482]
[1772144382126,0.99792375,2031.2,2030.5,2.02816643]
[1772144382327,0.9844297,2030.6,2030.2,2.0223891]
[1772144382531,0.9844297,2030.4,2029.8,1.78397198]
[1772144383328,0.98846554,2030.4,2029.8,1.79018579]
[1772144384035,0.98846554,2030.4,2029.8,1.00621381]
[1772144389838,0.98846554,2030.4,2029.9,0.80003702]
[1772144394637,1.22209822,2030.0,2029.6,1.0]
[1772144394842,0.9844297,2029.9,2029.6,1.0]
[1772144395942,0.9844297,2029.9,2029.6,1.00590227]
[1772144401948,1.22613406,2030.4,2028.8,1.0223891]
[1772144401949,0.9844297,2029.7,2028.8,1.0223891]
[1772144402155,1.22209822,2029.5,2028.8,1.0223891]
[1772144402449,0.9844297,2029.8,2029.0,1.0223891]
[1772144402953,0.9844297,2029.8,2029.0,1.02699922]
[1772144405555,0.9844297,2029.8,2029.1,1.0223891]
[1772144405761,0.9844297,2029.8,2029.3,1.0223891]
[1772144406261,0.9844297,2029.8,2029.4,2.02238561]
[1772144406562,0.9844297,2029.8,2029.4,1.0223891]
[1772144407156,0.9844297,2029.8,2029.4,2.02238561]
[1772144408261,0.9844297,2030.1,2029.5,1.0223891]
[1772144408659,0.9844297,2030.1,2029.1,1.0223891]
[1772144408961,0.9844297,2030.1,2029.2,1.0223891]
[1772144409456,0.9844297,2030.1,2029.2,0.99999651]
[1772144409661,0.9844297,2030.1,2029.3,1.0223891]
[1772144410963,1.01483895,2029.8,2029.1,1.02878564]
[1772144411161,1.01483895,2029.8,2029.2,1.02878564]
[1772144411562,1.01483895,2029.8,2029.3,1.02878564]
[1772144412361,1.01483895,2029.8,2029.1,1.02878564]
[1772144412562,1.01483895,2029.8,2029.1,2.02878215]
[1772144412761,1.01483895,2029.8,2029.1,1.02878564]
[1772144413662,1.01483895,2029.8,2029.0,0.00461012]
[1772144413663,1.01483895,2029.5,2029.0,0.00461012]
[1772144413964,1.01483895,2029.5,2029.0,1.03339576]
[1772144414165,1.01483895,2029.5,2029.0,0.00461012]
[1772144415565,1.01483895,2029.5,2029.0,1.03339576]
[1772144416360,1.01483895,2029.5,2029.0,0.00461012]
[1772144416759,1.01483895,2029.5,2029.0,1.00460663]
[1772144416965,1.01483895,2029.5,2029.0,0.00461012]
[1772144417365,1.01483895,2029.5,2029.0,1.00460663]
[1772144417865,1.01483895,2029.5,2029.0,0.00461012]
[1772144418065,1.01483895,2029.5,2029.0,1.03339576]
[1772144418266,1.01483895,2029.5,2028.8,1.02878564]
[1772144418466,1.01483895,2029.5,2028.9,1.02878564]
[1772144418967,1.01483895,2029.5,2028.8,1.02878564]
[1772144419168,1.01483895,2029.5,2028.8,2.02878215]
[1772144419366,1.01483895,2029.5,2028.8,2.03361029]
[1772144419668,1.01483895,2029.4,2028.8,2.03361029]
[1772144420068,1.01483895,2029.4,2028.9,0.99999651]
[1772144421070,1.01483895,2029.4,2029.0,1.02878564]
[1772144421267,1.01483895,2029.4,2028.9,1.02878564]
[1772144421469,1.01483895,2029.4,2029.0,1.02878564]
[1772144421969,1.01483895,2029.5,2029.3,0.99999651]
[1772144422165,1.01483895,2029.5,2028.9,1.02878564]
[1772144422468,1.01483895,2029.5,2029.2,0.99999651]
[1772144422968,1.01483895,2029.5,2029.1,1.02878564]
[1772144422969,1.01483895,2029.5,2029.4,0.99999651]
[1772144423168,1.01483895,2029.5,2029.1,1.02878564]
[1772144423364,1.01483895,2029.5,2029.3,0.84047403]
[1772144423565,1.01483895,2029.5,2029.1,1.02878564]
[1772144423971,1.01483895,2029.5,2029.3,0.84047403]
[1772144424360,1.01483895,2029.5,2029.2,1.02878564]
[1772144424659,1.01483895,2029.5,2029.4,0.84047403]
[1772144425974,1.01483895,2029.5,2029.4,0.74152538]
[1772144430574,1.01483895,2029.5,2029.2,1.02878564]
[1772144430774,1.01483895,2029.8,2029.4,0.74152538]
[1772144431074,1.01483895,2029.8,2029.2,1.02878564]
[1772144431373,1.01483895,2029.8,2029.3,1.77031102]
[1772144431675,1.01483895,2029.8,2029.3,1.02878564]
[1772144432277,1.01483895,2029.7,2029.4,0.74152538]
[1772144432777,1.01483895,2029.7,2029.5,0.74152538]
[1772144433878,1.01483895,2029.7,2029.3,1.02878564]
[1772144434176,1.01483895,2029.7,2029.5,0.74152538]
[1772144434478,1.01483895,2029.7,2029.3,1.02878564]
[1772144434976,1.01483895,2030.0,2029.3,1.02878564]
[1772144443282,1.01683349,2030.1,2029.3,1.02878564]
[1772144446585,1.01683349,2030.1,2029.0,1.04346527]
[1772144446885,1.01683349,2029.9,2029.0,1.04346527]
[1772144449889,3.98383349,2029.9,2029.0,1.04346527]
[1772144450186,1.01683349,2029.8,2029.0,1.04346527]
[1772144454590,2.967,2029.9,2029.0,1.04346527]
[1772144455093,3.98383349,2029.9,2029.0,1.04346527]
[1772144455691,1.01683349,2029.9,2029.0,1.04346527]
[1772144460595,1.01683349,2030.1,2029.2,1.04346527]
[1772144461892,1.01683349,2030.0,2029.2,1.04346527]
[1772144463398,1.01683349,2029.7,2029.1,2.02763575]
[1772144463601,1.01683349,2029.7,2028.8,1.04829341]
[1772144463798,1.01683349,2029.4,2028.8,1.04829341]
[1772144468501,1.01683349,2029.5,2028.8,1.04829341]
[1772144468700,1.01683349,2029.6,2028.8,1.04829341]
[1772144469206,1.01683349,2029.6,2028.9,1.04346527]
[1772144473107,1.01683349,2029.6,2029.0,1.01522346]
[1772144476007,1.02787298,2029.7,2029.0,1.01522346]
[1772144476306,1.02787298,2029.7,2029.2,1.01522346]
[1772144482512,1.02787298,2030.1,2029.5,1.01522346]
[1772144488825,1.22380025,2030.2,2029.0,0.24641]
[1772144488826,1.02787298,2029.9,2029.4,1.01522346]
[1772144497430,1.01241478,2029.7,2029.4,1.01522346]
[1772144497628,1.01241478,2029.7,2029.1,1.01181098]
[1772144499624,2.23621503,2029.4,2029.0,1.01181098]
[1772144500023,1.01241478,2029.4,2029.0,1.01181098]
[1772144504227,1.0902261,2029.5,2029.0,1.01181098]
[1772144504432,1.0902261,2029.6,2029.0,1.01181098]
[1772144526250,1.0902261,2029.6,2028.9,1.9936066]
[1772144526548,1.0902261,2029.6,2029.0,1.03011408]
[1772144528850,2.31402635,2029.6,2029.0,1.03011408]
[1772144529050,1.0902261,2029.5,2029.0,1.03011408]
[1772144531356,1.10615362,2029.7,2029.0,1.03011408]
[1772144540164,1.10615362,2029.7,2029.2,1.09245693]
[1772144540461,1.10615362,2030.1,2029.4,1.09245693]
[1772144578492,1.10615362,2030.1,2029.3,0.24638]
[1772144578691,1.10615362,2030.1,2029.3,2.29130741]
[1772144579296,1.10615362,2030.1,2029.3,0.24638]
[1772144579498,1.10615362,2030.1,2029.3,2.29130741]
[1772144580596,1.10615362,2030.1,2029.0,3.13888257]
[1772144580597,1.12616145,2030.0,2029.0,3.13888257]
[1772144580797,1.12616145,2030.0,2029.0,3.07140149]
[1772144581597,1.12616145,2029.9,2029.0,3.07140149]
[1772144582197,1.12616145,2029.9,2029.0,3.10553692]
[1772144582598,1.12616145,2029.7,2029.0,1.08265012]
[1772144582795,1.12616145,2029.7,2028.8,3.11064898]
[1772144582999,1.12616145,2029.4,2028.8,0.00482814]
[1772144583598,1.12616145,2029.2,2028.5,1.99260869]
[1772144584498,1.12616145,2029.2,2028.5,0.00494861]
[1772144584795,1.12616145,2029.2,2028.5,2.01976326]
[1772144585299,1.12616145,2029.2,2028.5,0.00494861]
[1772144589300,1.12616145,2029.2,2028.5,1.08759873]
[1772144591303,1.03780038,2029.0,2028.5,1.08759873]
[1772144591503,1.03780038,2029.0,2028.5,3.10604244]
[1772144591699,1.03780038,2029.0,2028.5,1.08759873]
[1772144592102,1.03780038,2029.0,2028.5,0.00494861]
[1772144592602,1.03780038,2029.0,2028.5,1.0690952]
[1772144604405,1.03780038,2028.6,2028.3,26.22899868]
[1772144604605,1.03780038,2028.6,2028.0,2.0435148]
[1772144604807,1.03780038,2028.6,2028.0,3.10766139]
[1772144605397,1.03780038,2028.6,2028.1,1.06414659]
[1772144605607,1.04380146,2028.6,2028.1,1.06918367]
[1772144608912,0.00600108,2028.6,2028.1,1.06918367]
[1772144609113,1.03780038,2028.7,2028.1,1.06918367]
[1772144610018,1.04169532,2028.7,2028.1,1.06918367]
[1772144612819,1.03780038,2028.4,2028.1,0.00503708]
[1772144613118,1.03780038,2028.4,2028.0,1.06318259]
[1772144613317,1.03780038,2028.4,2027.8,19.96279593]
[1772144613519,1.03780038,2028.4,2027.8,21.02694252]
[1772144613821,1.03780038,2028.4,2027.9,1.06414659]
[1772144614112,1.03780038,2028.4,2027.9,3.06986295]
[1772144614518,1.03780038,2028.4,2028.0,1.06414659]
[1772144615723,1.03780038,2028.4,2027.9,1.07021064]
[1772144622724,1.03780038,2028.4,2027.9,0.00606405]
[1772144622925,1.07776257,2028.2,2027.6,1.02941738]
[1772144623130,1.07776257,2028.2,2027.5,1.02941738]
[1772144623828,1.07776257,2028.2,2027.6,1.02941738]
[1772144624029,1.07776257,2028.2,2027.6,1.03395702]
[1772144624230,1.07776257,2028.5,2028.0,1.02941738]
[1772144624533,1.07776257,2028.5,2027.9,1.22465484]
[1772144624830,1.07776257,2028.5,2027.9,2.25407222]
[1772144625130,1.07776257,2028.5,2027.9,1.02941738]
[1772144625523,1.07776257,2028.5,2027.8,1.02941738]
[1772144628232,1.07776257,2028.5,2027.6,0.00453964]
[1772144628233,1.07776257,2028.1,2027.6,0.00453964]
[1772144628432,1.07776257,2028.1,2027.6,1.03395702]
[1772144631632,1.07776257,2028.1,2027.1,0.24663]
[1772144631633,2.30241741,2027.7,2027.2,1.02941738]
[1772144631833,1.07776257,2027.7,2027.2,1.02941738]
[1772144632637,1.07776257,2027.7,2027.2,1.03335558]
[1772144634739,1.07776257,2027.5,2026.9,1.02941738]
[1772144635639,1.07776257,2027.5,2026.9,1.03580118]
[1772144636735,1.07776257,2027.5,2026.9,0.0063838]
[1772144637137,1.07776257,2027.5,2026.9,1.03580118]
[1772144640541,1.07776257,2027.9,2027.2,1.02941738]
[1772144641340,1.07776257,2027.8,2027.0,1.02941738]
[1772144641540,1.07776257,2027.8,2027.2,1.02941738]
[1772144641941,1.07776257,2027.8,2027.3,1.02941738]
[1772144642238,1.07776257,2028.2,2027.5,1.02941738]
[1772144642840,1.07776257,2028.2,2027.4,2.25407222]
[1772144643236,1.07776257,2028.2,2027.5,1.02941738]
[1772144645143,1.07776257,2028.2,2027.6,1.22465484]
[1772144645343,1.07776257,2028.2,2027.6,2.25407222]
[1772144645740,1.07776257,2028.2,2027.6,1.02941738]
[1772144646740,0.17576257,2028.4,2028.1,1.02941738]
[1772144647037,1.07776257,2028.6,2027.9,1.02941738]
[1772144647241,1.07776257,2028.5,2027.9,1.02941738]
[1772144648046,1.08165751,2028.7,2027.9,1.02941738]
[1772144648247,1.08165751,2028.7,2027.4,5.57538314]
[1772144648248,1.08165751,2028.7,2028.1,1.02941738]
[1772144650041,1.08165751,2028.7,2027.4,3.52348441]
[1772144650042,0.00389494,2028.7,2028.3,1.09993446]
[1772144650241,1.11016927,2029.1,2028.5,1.09993446]
[1772144650644,1.11016927,2029.0,2028.5,1.09993446]
[1772144651149,1.11383129,2029.0,2028.5,1.10397944]
[1772144651751,0.00366202,2029.0,2028.5,1.10397944]
[1772144651951,1.11016927,2029.1,2028.5,1.10397944]
[1772144652948,1.11490502,2029.1,2028.5,1.10397944]
[1772144653449,0.86490502,2029.1,2028.5,1.10397944]
[1772144654653,0.00473575,2029.1,2028.5,1.10397944]
[1772144666759,1.11490502,2029.1,2028.5,1.10397944]
[1772144667467,0.00473575,2029.1,2028.5,1.10397944]
[1772144668062,4.07716927,2029.4,2028.5,1.10397944]
[1772144668264,1.11016927,2029.3,2028.5,1.10397944]
[1772144669065,1.11635824,2029.3,2028.5,1.10397944]
[1772144669268,0.00618897,2029.3,2028.5,1.10397944]
[1772144670271,1.11635824,2029.3,2028.7,1.09993446]
[1772144673569,1.11635824,2029.3,2028.6,1.09993446]
[1772144674571,1.11635824,2029.3,2028.6,1.10485739]
[1772144675981,0.00618897,2029.3,2028.8,1.09993446]
[1772144676268,1.11635824,2029.3,2028.8,1.09993446]
[1772144676770,0.00618897,2029.3,2028.8,1.09993446]
[1772144677174,1.12344859,2029.6,2028.8,1.09993446]
[1772144678072,1.1294045,2029.6,2028.8,1.09993446]
[1772144691186,1.08044773,2029.4,2028.7,1.09662692]
[1772144691382,1.08044773,2029.4,2028.6,1.10154985]
[1772144696483,1.08044773,2029.1,2028.6,0.00492293]
[1772144696888,1.08044773,2029.1,2028.6,1.10154985]
[1772144698484,1.08044773,2029.1,2028.6,0.00492293]
[1772144698689,1.08044773,2029.1,2028.4,1.09662692]
[1772144699790,1.08044773,2029.1,2028.4,1.10257042]
[1772144700592,1.08044773,2028.8,2028.2,1.09662692]
[1772144701492,1.08044773,2028.8,2028.2,1.10093191]
[1772144704293,1.08044773,2028.5,2028.0,1.09662692]
[1772144704492,1.08044773,2028.5,2027.8,1.09662692]
[1772144705297,1.08044773,2028.5,2027.8,1.10107411]
[1772144708293,1.08044773,2028.5,2027.8,0.00444719]
[1772144709496,1.08044773,2028.2,2027.5,1.09662692]
[1772144710293,1.08044773,2028.2,2027.5,1.10178067]
[1772144710794,1.08044773,2028.2,2027.5,1.11824152]
[1772144710992,41.88044773,2028.2,2027.5,1.11824152]
[1772144711287,1.05141419,2028.1,2027.5,1.11824152]
[1772144711592,1.05570684,2028.1,2027.5,1.11824152]
[1772144712989,1.05141419,2027.9,2027.4,2.05222957]
[1772144713395,1.05141419,2027.7,2027.4,2.05222957]
[1772144713995,1.05141419,2027.7,2027.4,3.16911078]
[1772144715493,1.22621988,2027.8,2027.5,1.11308777]
[1772144715694,0.00429265,2028.1,2027.5,1.11308777]
[1772144715899,1.05141419,2028.3,2027.7,1.11308777]
[1772144716998,1.05735147,2028.3,2027.7,1.11308777]
[1772144720397,0.00593728,2028.3,2027.7,1.11308777]
[1772144720603,1.05141419,2028.5,2027.9,1.11308777]
[1772144721500,1.05735523,2028.5,2027.9,1.11308777]
[1772144725804,0.00594104,2028.5,2028.1,1.11308777]
[1772144726302,1.05735523,2028.5,2028.1,1.11308777]
[1772144727602,1.05141419,2028.4,2027.9,1.11308777]
[1772144731698,1.05735523,2028.5,2027.9,1.11308777]
[1772144732605,0.00594104,2028.5,2027.9,1.11308777]
[1772144734006,1.05141419,2028.4,2027.9,1.11308777]
[1772144734908,1.05735523,2028.5,2027.9,1.11308777]
[1772144745306,0.00594104,2028.5,2027.9,1.11308777]
[1772144745706,1.02985338,2028.5,2027.9,1.11308777]
[1772144745908,1.02391234,2028.4,2027.9,1.11308777]
[1772144749010,2.25607326,2028.5,2027.9,1.11308777]
[1772144749304,1.02985338,2028.5,2027.9,1.11308777]
[1772144753610,0.00594104,2028.5,2027.9,1.11308777]
[1772144755012,1.02985338,2028.5,2027.9,1.11308777]
[1772144758808,1.02985338,2028.5,2027.6,1.47279988]
[1772144759011,2.25013222,2028.2,2027.5,0.79468201]
[1772144759210,1.02391234,2028.3,2027.5,0.79468201]
[1772144762316,1.02985338,2028.5,2027.7,0.84889835]
[1772144763712,1.02985338,2028.5,2027.9,0.84886299]
[1772144771117,1.02985338,2028.5,2027.7,0.81490395]
[1772144775519,0.00594104,2028.5,2027.9,0.81256938]
[1772144775724,0.00594104,2028.5,2028.1,0.81256938]
[1772144777627,1.11340677,2029.0,2028.1,0.81256938]
[1772144778627,1.11726061,2029.0,2028.1,0.81256938]
[1772144785440,1.11726061,2029.0,2028.2,0.80795597]
[1772144790942,1.11340677,2028.9,2028.2,0.80795597]
[1772144791133,1.11340677,2028.9,2028.1,2.88098303]
[1772144792344,1.11340677,2028.9,2028.1,2.86371365]
[1772144792844,1.11340677,2028.9,2028.1,0.81489236]
[1772144793045,1.11340677,2028.9,2028.1,2.86371365]
[1772144794146,1.11340677,2028.9,2028.1,0.81489236]
[1772144794346,1.11340677,2028.9,2028.1,2.85555314]
[1772144794645,1.11340677,2028.9,2028.1,0.81489236]
[1772144794845,1.11340677,2028.9,2028.1,2.85555314]
[1772144795545,1.11340677,2028.9,2028.1,2.86348598]
[1772144798145,1.11340677,2028.9,2028.1,0.81489236]
[1772144798348,1.11340677,2028.9,2028.1,2.84915316]
[1772144799048,1.11340677,2028.9,2028.2,0.81451582]
[1772144799944,1.11340677,2028.9,2028.1,2.04130858]
[1772144800444,1.11340677,2028.9,2028.2,0.8145966]
[1772144822062,1.11340677,2028.9,2028.1,2.81716281]
[1772144822256,1.11340677,2028.9,2028.2,0.79796992]
[1772144824066,1.09174892,2028.8,2028.0,0.79775577]
[1772144824268,1.09174892,2028.8,2028.0,2.82759138]
[1772144824670,1.09174892,2028.8,2028.0,0.79775577]
[1772144825864,1.09174892,2028.8,2028.0,2.86527695]
[1772144827704,1.09174892,2028.8,2028.1,0.79674629]
[1772144835273,1.04875261,2028.7,2028.1,0.79674629]
[1772144835475,4.01575261,2028.9,2028.1,0.79674629]
[1772144835674,1.04875261,2028.8,2028.1,0.79674629]
[1772144843273,1.05260645,2029.0,2028.3,0.80810243]
[1772144846179,0.00385384,2029.0,2028.5,0.80860092]
[1772144846380,1.05260645,2029.0,2028.5,0.80860092]
[1772144857891,1.11833329,2029.1,2028.7,0.7875329]
[1772144858188,1.11833329,2029.1,2028.4,0.78775425]
[1772144858891,1.12455399,2029.1,2028.4,0.78775425]